[Event "Titled Tuesday Blitz April 25 Early 2023"]
[White "kuanysh1981"]
[Black "Melikyan, Gnel"]
[BlackFideId "54109990"]
[WhiteElo "2412"]
[BlackElo "2138"]
[Result "1-0"]
[Round "06"]
[TimeControl "180+2"]
[Date "2023.04.25"]
[WhiteClock "0:00:04"]
[BlackClock "0:00:12"]

1. d4 {[%clk 0:02:54]}  d6 {[%clk 0:02:58]} 2. Nf3 {[%clk 0:02:54]}  Nf6 {[%clk 0:02:56]} 3. c4 {[%clk 0:02:53]}  c5 {[%clk 0:02:55]} 4. Nc3 {[%clk 0:02:52]}  cxd4 {[%clk 0:02:54]} 5. Nxd4 {[%clk 0:02:52]}  Nc6 {[%clk 0:02:55]} 6. g3 {[%clk 0:02:50]}  g6 {[%clk 0:02:51]} 7. Bg2 {[%clk 0:02:49]}  Bd7 {[%clk 0:02:51]} 8. O-O {[%clk 0:02:49]}  Bg7 {[%clk 0:02:50]} 9. b3 {[%clk 0:02:49]}  O-O {[%clk 0:02:45]} 10. Bb2 {[%clk 0:02:48]}  Rc8 {[%clk 0:02:42]} 11. Rc1 {[%clk 0:02:42]}  a6 {[%clk 0:02:41]} 12. h3 {[%clk 0:02:42]}  Re8 {[%clk 0:02:31]} 13. Qd2 {[%clk 0:02:39]}  Qb6 {[%clk 0:02:19]} 14. Na4 {[%clk 0:02:37]}  Qd8 {[%clk 0:02:10]} 15. Nc3 {[%clk 0:02:30]}  Qb6 {[%clk 0:02:03]} 16. e3 {[%clk 0:02:20]}  Qa7 {[%clk 0:01:51]} 17. Rfd1 {[%clk 0:02:17]}  Ne5 {[%clk 0:01:42]} 18. Nd5 {[%clk 0:02:11]}  Bc6 {[%clk 0:01:28]} 19. Nxc6 {[%clk 0:02:04]}  bxc6 {[%clk 0:01:26]} 20. Nc3 {[%clk 0:01:44]}  Ned7 {[%clk 0:01:20]} 21. Na4 {[%clk 0:01:37]}  Nb6 {[%clk 0:01:08]} 22. Nxb6 {[%clk 0:01:30]}  Qxb6 {[%clk 0:01:09]} 23. Bc3 {[%clk 0:01:22]}  Qb7 {[%clk 0:01:02]} 24. Qb2 {[%clk 0:01:15]}  Red8 {[%clk 0:00:57]} 25. Qa3 {[%clk 0:01:10]}  Nd7 {[%clk 0:00:24]} 26. Ba5 {[%clk 0:01:03]}  Re8 {[%clk 0:00:21]} 27. h4 {[%clk 0:01:03]}  h5 {[%clk 0:00:16]} 28. Bh3 {[%clk 0:01:03]}  Ra8 {[%clk 0:00:14]} 29. Rc2 {[%clk 0:00:56]}  Nc5 {[%clk 0:00:13]} 30. Bg2 {[%clk 0:00:52]}  Rec8 {[%clk 0:00:10]} 31. Qc1 {[%clk 0:00:46]}  Qd7 {[%clk 0:00:07]} 32. Qd2 {[%clk 0:00:45]}  Qf5 {[%clk 0:00:06]} 33. Qe2 {[%clk 0:00:45]}  Qe6 {[%clk 0:00:03]} 34. e4 {[%clk 0:00:43]}  Nb7 {[%clk 0:00:04]} 35. Bd2 {[%clk 0:00:41]}  a5 {[%clk 0:00:04]} 36. Bg5 {[%clk 0:00:39]}  a4 {[%clk 0:00:04]} 37. b4 {[%clk 0:00:37]}  Re8 {[%clk 0:00:04]} 38. a3 {[%clk 0:00:36]}  Qc8 {[%clk 0:00:04]} 39. Be3 {[%clk 0:00:34]}  Nd8 {[%clk 0:00:05]} 40. Rb1 {[%clk 0:00:32]}  Ne6 {[%clk 0:00:05]} 41. Qd3 {[%clk 0:00:31]}  Qb7 {[%clk 0:00:06]} 42. f4 {[%clk 0:00:29]}  Red8 {[%clk 0:00:05]} 43. Qe2 {[%clk 0:00:27]}  Nf8 {[%clk 0:00:06]} 44. e5 {[%clk 0:00:23]}  dxe5 {[%clk 0:00:06]} 45. b5 {[%clk 0:00:20]}  Rac8 {[%clk 0:00:06]} 46. Rb4 {[%clk 0:00:17]}  exf4 {[%clk 0:00:07]} 47. gxf4 {[%clk 0:00:16]}  Qd7 {[%clk 0:00:06]} 48. bxc6 {[%clk 0:00:15]}  Qd1+ {[%clk 0:00:07]} 49. Qxd1 {[%clk 0:00:14]}  Rxd1+ {[%clk 0:00:08]} 50. Kf2 {[%clk 0:00:15]}  Ne6 {[%clk 0:00:09]} 51. Rxa4 {[%clk 0:00:13]}  Bd4 {[%clk 0:00:09]} 52. c5 {[%clk 0:00:10]}  Bxe3+ {[%clk 0:00:09]} 53. Kxe3 {[%clk 0:00:10]}  Re1+ {[%clk 0:00:10]} 54. Kf2 {[%clk 0:00:10]}  Rb1 {[%clk 0:00:10]} 55. Ra7 {[%clk 0:00:08]}  Nxf4 {[%clk 0:00:10]} 56. Bf3 {[%clk 0:00:07]}  Nd3+ {[%clk 0:00:11]} 57. Ke3 {[%clk 0:00:07]}  Ne5 {[%clk 0:00:12]} 58. Rxe7 {[%clk 0:00:05]}  Nxf3 {[%clk 0:00:11]} 59. Kxf3 {[%clk 0:00:05]}  Rb3+ {[%clk 0:00:12]} 60. Ke4 {[%clk 0:00:04]}  Rxa3 {[%clk 0:00:12]} 61. Kd5 {[%clk 0:00:05]}  Rd3+ {[%clk 0:00:12]} 62. Kc4 {[%clk 0:00:05]}  Rd1 {[%clk 0:00:12]} 63. c7 {[%clk 0:00:05]}  Kf8 {[%clk 0:00:12]} 64. Rce2 {[%clk 0:00:05]}  Rc1+ {[%clk 0:00:11]} 65. Kb5 {[%clk 0:00:05]}  Ra1 {[%clk 0:00:09]} 66. Re8+ {[%clk 0:00:04]}  Rxe8 {[%clk 0:00:08]} 67. Rxe8+ {[%clk 0:00:04]}  Kxe8 {[%clk 0:00:09]} 68. c8=Q+ {[%clk 0:00:03]}  Ke7 {[%clk 0:00:10]} 69. c6 {[%clk 0:00:04]}  Rb1+ {[%clk 0:00:10]} 70. Kc4 {[%clk 0:00:04]}  Rc1+ {[%clk 0:00:11]} 71. Kd3 {[%clk 0:00:04]}  Rd1+ {[%clk 0:00:11]} 72. Ke2 {[%clk 0:00:05]}  Rd6 {[%clk 0:00:12]} 73. Qc7+ {[%clk 0:00:05]}  Ke6 {[%clk 0:00:12]} 74. Qb7 {[%clk 0:00:05]}  Rd7 {[%clk 0:00:12]} 75. Qxd7+ {[%clk 0:00:04]} 1-0


[Site "https://www.chess.com"]

[Event "Titled Tuesday Blitz April 25 Early 2023"]
[White "Osinenko, Anton"]
[Black "Kopczynski, Michal"]
[WhiteFideId "4158970"]
[BlackFideId "1124200"]
[WhiteElo "2294"]
[BlackElo "2212"]
[Result "1-0"]
[Round "06"]
[TimeControl "180+2"]
[Date "2023.04.25"]
[WhiteClock "0:00:21"]
[BlackClock "0:00:06"]

1. e4 {[%clk 0:03:00]}  c5 {[%clk 0:02:59]} 2. Nf3 {[%clk 0:03:00]}  d6 {[%clk 0:03:00]} 3. c3 {[%clk 0:02:59]}  Nf6 {[%clk 0:02:59]} 4. g3 {[%clk 0:02:59]}  g6 {[%clk 0:02:59]} 5. Bg2 {[%clk 0:02:58]}  Bg7 {[%clk 0:02:59]} 6. O-O {[%clk 0:02:59]}  O-O {[%clk 0:02:59]} 7. Re1 {[%clk 0:02:59]}  Nc6 {[%clk 0:02:59]} 8. d4 {[%clk 0:02:58]}  cxd4 {[%clk 0:02:59]} 9. Nxd4 {[%clk 0:02:58]}  Bg4 {[%clk 0:02:51]} 10. Qa4 {[%clk 0:02:53]}  Qd7 {[%clk 0:02:46]} 11. Nxc6 {[%clk 0:02:49]}  bxc6 {[%clk 0:02:46]} 12. e5 {[%clk 0:02:29]}  dxe5 {[%clk 0:02:11]} 13. Bxc6 {[%clk 0:02:23]}  Qf5 {[%clk 0:02:06]} 14. f4 {[%clk 0:01:48]}  exf4 {[%clk 0:01:35]} 15. Bxf4 {[%clk 0:01:49]}  Rac8 {[%clk 0:01:28]} 16. Re5 {[%clk 0:01:37]}  Qd3 {[%clk 0:01:27]} 17. Na3 {[%clk 0:01:36]}  Rxc6 {[%clk 0:01:11]} 18. Qxc6 {[%clk 0:01:32]}  Bf3 {[%clk 0:01:11]} 19. Qb5 {[%clk 0:01:32]}  Qd8 {[%clk 0:00:53]} 20. Rae1 {[%clk 0:01:27]}  Nh5 {[%clk 0:00:49]} 21. Rxe7 {[%clk 0:01:22]}  Nxf4 {[%clk 0:00:49]} 22. gxf4 {[%clk 0:01:23]}  Qd2 {[%clk 0:00:43]} 23. Qf1 {[%clk 0:01:17]}  Qxf4 {[%clk 0:00:35]} 24. R7e3 {[%clk 0:00:59]}  Qg5+ {[%clk 0:00:32]} 25. Kf2 {[%clk 0:00:58]}  Bh5 {[%clk 0:00:32]} 26. Qg2 {[%clk 0:00:57]}  Qf4+ {[%clk 0:00:31]} 27. Kg1 {[%clk 0:00:56]}  h6 {[%clk 0:00:24]} 28. Nc2 {[%clk 0:00:53]}  Qb8 {[%clk 0:00:21]} 29. b3 {[%clk 0:00:50]}  Qb6 {[%clk 0:00:21]} 30. Kh1 {[%clk 0:00:45]}  Rc8 {[%clk 0:00:20]} 31. Re8+ {[%clk 0:00:44]}  Rxe8 {[%clk 0:00:20]} 32. Rxe8+ {[%clk 0:00:45]}  Kh7 {[%clk 0:00:21]} 33. Re3 {[%clk 0:00:45]}  g5 {[%clk 0:00:17]} 34. Qd5 {[%clk 0:00:40]}  Bg6 {[%clk 0:00:17]} 35. Nd4 {[%clk 0:00:38]}  Qa6 {[%clk 0:00:15]} 36. Qg2 {[%clk 0:00:32]}  Qb6 {[%clk 0:00:11]} 37. Qd2 {[%clk 0:00:32]}  Qf6 {[%clk 0:00:08]} 38. Kg1 {[%clk 0:00:31]}  Qf4 {[%clk 0:00:08]} 39. Re2 {[%clk 0:00:31]}  Qg4+ {[%clk 0:00:08]} 40. Rg2 {[%clk 0:00:31]}  Qh4 {[%clk 0:00:07]} 41. Qe3 {[%clk 0:00:24]}  Be4 {[%clk 0:00:07]} 42. Nf3 {[%clk 0:00:24]}  Bxf3 {[%clk 0:00:04]} 43. Qxf3 {[%clk 0:00:25]}  Qe1+ {[%clk 0:00:05]} 44. Qf1 {[%clk 0:00:23]}  Qxc3 {[%clk 0:00:05]} 45. Kh1 {[%clk 0:00:21]}  Kg6 {[%clk 0:00:05]} 46. Rf2 {[%clk 0:00:18]}  f6 {[%clk 0:00:05]} 47. Rg2 {[%clk 0:00:18]}  Qc6 {[%clk 0:00:05]} 48. Qd3+ {[%clk 0:00:18]}  f5 {[%clk 0:00:05]} 49. h3 {[%clk 0:00:18]}  Kf6 {[%clk 0:00:04]} 50. Kg1 {[%clk 0:00:17]}  f4 {[%clk 0:00:04]} 51. Rd2 {[%clk 0:00:16]}  Kf7 {[%clk 0:00:04]} 52. Qd7+ {[%clk 0:00:15]}  Qxd7 {[%clk 0:00:04]} 53. Rxd7+ {[%clk 0:00:16]}  Kg6 {[%clk 0:00:05]} 54. Kf2 {[%clk 0:00:16]}  h5 {[%clk 0:00:03]} 55. Kf3 {[%clk 0:00:17]}  Kf5 {[%clk 0:00:03]} 56. Rd5+ {[%clk 0:00:16]}  Kg6 {[%clk 0:00:03]} 57. Ra5 {[%clk 0:00:17]}  Bd4 {[%clk 0:00:03]} 58. Ke4 {[%clk 0:00:17]}  Be3 {[%clk 0:00:03]} 59. Ra6+ {[%clk 0:00:17]}  Kf7 {[%clk 0:00:03]} 60. a4 {[%clk 0:00:16]}  g4 {[%clk 0:00:03]} 61. hxg4 {[%clk 0:00:17]}  hxg4 {[%clk 0:00:04]} 62. Rc6 {[%clk 0:00:17]}  g3 {[%clk 0:00:04]} 63. Kf3 {[%clk 0:00:16]}  Ke7 {[%clk 0:00:04]} 64. b4 {[%clk 0:00:15]}  Kd7 {[%clk 0:00:05]} 65. b5 {[%clk 0:00:16]}  Kd8 {[%clk 0:00:04]} 66. Rg6 {[%clk 0:00:16]}  Kc7 {[%clk 0:00:04]} 67. Ke4 {[%clk 0:00:17]}  Kb7 {[%clk 0:00:04]} 68. Kf3 {[%clk 0:00:17]}  Kc7 {[%clk 0:00:05]} 69. a5 {[%clk 0:00:18]}  Kb7 {[%clk 0:00:05]} 70. a6+ {[%clk 0:00:18]}  Kc7 {[%clk 0:00:05]} 71. Rg7+ {[%clk 0:00:18]}  Kb6 {[%clk 0:00:05]} 72. Rb7+ {[%clk 0:00:18]}  Ka5 {[%clk 0:00:05]} 73. Rb8 {[%clk 0:00:19]}  Ka4 {[%clk 0:00:06]} 74. Rb7 {[%clk 0:00:19]}  Ka5 {[%clk 0:00:06]} 75. Rb8 {[%clk 0:00:19]}  Ka4 {[%clk 0:00:06]} 76. b6 {[%clk 0:00:20]}  g2 {[%clk 0:00:05]} 77. Kxg2 {[%clk 0:00:20]}  Bxb6 {[%clk 0:00:05]} 78. Rxb6 {[%clk 0:00:20]}  axb6 {[%clk 0:00:06]} 79. a7 {[%clk 0:00:20]}  Kb5 {[%clk 0:00:06]} 80. a8=Q {[%clk 0:00:21]} 1-0


[Site "https://www.chess.com"]

[Event "Titled Tuesday Blitz April 25 Early 2023"]
[White "Topalov, Aleksandar"]
[Black "SashaKuzhilniy"]
[WhiteFideId "925659"]
[WhiteElo "2151"]
[BlackElo "2554"]
[Result "0-1"]
[Round "06"]
[TimeControl "180+2"]
[Date "2023.04.25"]
[WhiteClock "0:00:21"]
[BlackClock "0:00:14"]

1. b3 {[%clk 0:02:52]}  d5 {[%clk 0:02:56]} 2. Bb2 {[%clk 0:02:52]}  c6 {[%clk 0:02:56]} 3. Nf3 {[%clk 0:02:51]}  Bf5 {[%clk 0:02:55]} 4. g3 {[%clk 0:02:51]}  e6 {[%clk 0:02:56]} 5. Bg2 {[%clk 0:02:52]}  h6 {[%clk 0:02:56]} 6. O-O {[%clk 0:02:52]}  Nf6 {[%clk 0:02:57]} 7. d3 {[%clk 0:02:52]}  Nbd7 {[%clk 0:02:56]} 8. Nbd2 {[%clk 0:02:53]}  Be7 {[%clk 0:02:56]} 9. e4 {[%clk 0:02:50]}  Bh7 {[%clk 0:02:56]} 10. Qe2 {[%clk 0:02:50]}  O-O {[%clk 0:02:54]} 11. Kh1 {[%clk 0:02:50]}  a5 {[%clk 0:02:49]} 12. a3 {[%clk 0:02:50]}  b5 {[%clk 0:02:47]} 13. Ng1 {[%clk 0:02:48]}  a4 {[%clk 0:02:41]} 14. b4 {[%clk 0:02:46]}  Rc8 {[%clk 0:02:39]} 15. d4 {[%clk 0:02:43]}  dxe4 {[%clk 0:02:36]} 16. Nxe4 {[%clk 0:02:42]}  Nxe4 {[%clk 0:02:37]} 17. Bxe4 {[%clk 0:02:42]}  Bxe4+ {[%clk 0:02:37]} 18. Qxe4 {[%clk 0:02:42]}  Nf6 {[%clk 0:02:38]} 19. Qe2 {[%clk 0:02:39]}  Qd5+ {[%clk 0:02:38]} 20. Nf3 {[%clk 0:02:38]}  Ne4 {[%clk 0:02:32]} 21. Kg1 {[%clk 0:02:36]}  Nd6 {[%clk 0:02:31]} 22. Rad1 {[%clk 0:02:29]}  Nc4 {[%clk 0:02:30]} 23. Bc1 {[%clk 0:02:29]}  Bf6 {[%clk 0:02:28]} 24. c3 {[%clk 0:02:29]}  Rfe8 {[%clk 0:02:26]} 25. Rfe1 {[%clk 0:02:27]}  Rcd8 {[%clk 0:02:26]} 26. Nd2 {[%clk 0:02:12]}  Nxd2 {[%clk 0:02:19]} 27. Rxd2 {[%clk 0:02:02]}  Re7 {[%clk 0:01:57]} 28. Rd3 {[%clk 0:01:46]}  e5 {[%clk 0:01:39]} 29. Re3 {[%clk 0:01:44]}  Rde8 {[%clk 0:01:39]} 30. Qh5 {[%clk 0:01:12]}  exd4 {[%clk 0:01:21]} 31. Qxd5 {[%clk 0:01:11]}  cxd5 {[%clk 0:01:21]} 32. Rxe7 {[%clk 0:01:11]}  Rxe7 {[%clk 0:01:15]} 33. Rxe7 {[%clk 0:01:11]}  Bxe7 {[%clk 0:01:15]} 34. cxd4 {[%clk 0:01:11]}  h5 {[%clk 0:01:16]} 35. h3 {[%clk 0:01:08]}  Kh7 {[%clk 0:01:11]} 36. Kg2 {[%clk 0:01:07]}  Kg6 {[%clk 0:01:11]} 37. g4 {[%clk 0:01:07]}  f5 {[%clk 0:01:07]} 38. f3 {[%clk 0:01:05]}  Bg5 {[%clk 0:00:45]} 39. f4 {[%clk 0:01:00]}  Bf6 {[%clk 0:00:43]} 40. gxh5+ {[%clk 0:01:00]}  Kxh5 {[%clk 0:00:42]} 41. Be3 {[%clk 0:01:00]}  Bh4 {[%clk 0:00:39]} 42. Bf2 {[%clk 0:00:55]}  Be7 {[%clk 0:00:33]} 43. Be3 {[%clk 0:00:47]}  Bd6 {[%clk 0:00:31]} 44. Kg3 {[%clk 0:00:46]}  g5 {[%clk 0:00:30]} 45. Kf3 {[%clk 0:00:44]}  g4+ {[%clk 0:00:23]} 46. hxg4+ {[%clk 0:00:44]}  fxg4+ {[%clk 0:00:23]} 47. Kg3 {[%clk 0:00:45]}  Be7 {[%clk 0:00:19]} 48. f5 {[%clk 0:00:39]}  Bh4+ {[%clk 0:00:16]} 49. Kg2 {[%clk 0:00:36]}  Bg5 {[%clk 0:00:16]} 50. Bf2 {[%clk 0:00:31]}  Bf4 {[%clk 0:00:16]} 51. Bg3 {[%clk 0:00:31]}  Bc1 {[%clk 0:00:15]} 52. f6 {[%clk 0:00:29]}  Kg6 {[%clk 0:00:15]} 53. Be1 {[%clk 0:00:20]}  Bxa3 {[%clk 0:00:15]} 54. Kg3 {[%clk 0:00:20]}  Kxf6 {[%clk 0:00:15]} 55. Kxg4 {[%clk 0:00:21]}  Bb2 {[%clk 0:00:14]} 0-1


[Site "https://www.chess.com"]

[Event "Titled Tuesday Blitz April 25 Early 2023"]
[White "Mordechai, Hanan"]
[Black "Pourkashiyan, Atousa"]
[WhiteFideId "2804166"]
[BlackFideId "12502014"]
[WhiteElo "2324"]
[BlackElo "2228"]
[Result "0-1"]
[Round "06"]
[TimeControl "180+2"]
[Date "2023.04.25"]
[WhiteClock "0:00:33"]
[BlackClock "0:00:18"]

1. Nf3 {[%clk 0:03:00]}  d5 {[%clk 0:02:52]} 2. g3 {[%clk 0:03:00]}  Nf6 {[%clk 0:02:50]} 3. Bg2 {[%clk 0:03:01]}  c6 {[%clk 0:02:50]} 4. b3 {[%clk 0:02:59]}  Bg4 {[%clk 0:02:43]} 5. Bb2 {[%clk 0:02:59]}  Nbd7 {[%clk 0:02:41]} 6. O-O {[%clk 0:02:58]}  e6 {[%clk 0:02:37]} 7. h3 {[%clk 0:02:58]}  Bh5 {[%clk 0:02:33]} 8. d3 {[%clk 0:02:55]}  Bc5 {[%clk 0:02:23]} 9. Nbd2 {[%clk 0:02:55]}  O-O {[%clk 0:02:17]} 10. e4 {[%clk 0:02:54]}  a5 {[%clk 0:01:58]} 11. a3 {[%clk 0:02:52]}  Qc7 {[%clk 0:01:41]} 12. Ra2 {[%clk 0:02:29]}  b5 {[%clk 0:01:15]} 13. e5 {[%clk 0:02:26]}  Ne8 {[%clk 0:01:13]} 14. g4 {[%clk 0:02:26]}  Bg6 {[%clk 0:01:13]} 15. Qe2 {[%clk 0:02:25]}  Be7 {[%clk 0:01:00]} 16. Nh2 {[%clk 0:02:18]}  Qa7 {[%clk 0:01:00]} 17. Kh1 {[%clk 0:02:17]}  Nc7 {[%clk 0:00:50]} 18. f4 {[%clk 0:02:17]}  f5 {[%clk 0:00:48]} 19. Raa1 {[%clk 0:01:53]}  c5 {[%clk 0:00:36]} 20. c4 {[%clk 0:01:49]}  bxc4 {[%clk 0:00:32]} 21. dxc4 {[%clk 0:01:50]}  Rab8 {[%clk 0:00:23]} 22. Rad1 {[%clk 0:01:34]}  d4 {[%clk 0:00:20]} 23. Bc6 {[%clk 0:01:17]}  Na6 {[%clk 0:00:18]} 24. g5 {[%clk 0:01:11]}  Rbc8 {[%clk 0:00:18]} 25. Bf3 {[%clk 0:01:10]}  Nab8 {[%clk 0:00:17]} 26. Qd3 {[%clk 0:01:10]}  Nc6 {[%clk 0:00:17]} 27. h4 {[%clk 0:01:09]}  Rb8 {[%clk 0:00:18]} 28. h5 {[%clk 0:01:09]}  Be8 {[%clk 0:00:17]} 29. Bxc6 {[%clk 0:00:59]}  Nxe5 {[%clk 0:00:17]} 30. fxe5 {[%clk 0:00:59]}  Bxc6+ {[%clk 0:00:17]} 31. Kg1 {[%clk 0:01:00]}  Ba8 {[%clk 0:00:17]} 32. Nhf3 {[%clk 0:00:54]}  Qb7 {[%clk 0:00:18]} 33. Ba1 {[%clk 0:00:52]}  Bxg5 {[%clk 0:00:17]} 34. Rb1 {[%clk 0:00:49]}  Be3+ {[%clk 0:00:17]} 35. Kh2 {[%clk 0:00:45]}  Qf7 {[%clk 0:00:18]} 36. Rh1 {[%clk 0:00:35]}  Qxh5+ {[%clk 0:00:18]} 37. Kg2 {[%clk 0:00:34]}  Qg4+ {[%clk 0:00:18]} 38. Kf1 {[%clk 0:00:34]}  Bxf3 {[%clk 0:00:17]} 39. Nxf3 {[%clk 0:00:33]}  Qxf3+ {[%clk 0:00:18]} 40. Ke1 {[%clk 0:00:33]}  Qxh1+ {[%clk 0:00:18]} 0-1


[Site "https://www.chess.com"]

[Event "Titled Tuesday Blitz April 25 Early 2023"]
[White "Ansh M Shah"]
[Black "Fiorito, Francisco"]
[WhiteFideId "25033379"]
[BlackFideId "180165"]
[WhiteElo "2084"]
[BlackElo "2341"]
[Result "0-1"]
[Round "06"]
[TimeControl "180+2"]
[Date "2023.04.25"]
[WhiteClock "0:00:01"]
[BlackClock "0:00:38"]

1. d4 {[%clk 0:02:56]}  Nf6 {[%clk 0:02:59]} 2. c4 {[%clk 0:02:56]}  b6 {[%clk 0:02:58]} 3. g3 {[%clk 0:02:57]}  Bb7 {[%clk 0:02:58]} 4. Nf3 {[%clk 0:02:57]}  g6 {[%clk 0:02:58]} 5. Bg2 {[%clk 0:02:58]}  Bg7 {[%clk 0:02:59]} 6. O-O {[%clk 0:02:58]}  O-O {[%clk 0:02:59]} 7. Nc3 {[%clk 0:02:58]}  Ne4 {[%clk 0:02:59]} 8. Bd2 {[%clk 0:02:55]}  Nxc3 {[%clk 0:02:54]} 9. Bxc3 {[%clk 0:02:55]}  Be4 {[%clk 0:02:55]} 10. Qd2 {[%clk 0:02:49]}  d5 {[%clk 0:02:53]} 11. cxd5 {[%clk 0:02:44]}  Qxd5 {[%clk 0:02:52]} 12. Nh4 {[%clk 0:02:42]}  Bxg2 {[%clk 0:02:39]} 13. Nxg2 {[%clk 0:02:42]}  Rd8 {[%clk 0:02:38]} 14. Ne3 {[%clk 0:02:41]}  Qd7 {[%clk 0:02:30]} 15. d5 {[%clk 0:02:40]}  Bxc3 {[%clk 0:02:20]} 16. Qxc3 {[%clk 0:02:41]}  Na6 {[%clk 0:02:01]} 17. b4 {[%clk 0:02:27]}  Rac8 {[%clk 0:01:54]} 18. Rac1 {[%clk 0:02:25]}  Nb8 {[%clk 0:01:46]} 19. Rfd1 {[%clk 0:02:08]}  h5 {[%clk 0:01:43]} 20. h4 {[%clk 0:01:59]}  Qe8 {[%clk 0:01:20]} 21. Rd4 {[%clk 0:01:44]}  c6 {[%clk 0:01:14]} 22. Rc4 {[%clk 0:01:08]}  Rd6 {[%clk 0:01:11]} 23. Qe5 {[%clk 0:00:37]}  Nd7 {[%clk 0:01:02]} 24. Qg5 {[%clk 0:00:23]}  Nf6 {[%clk 0:00:50]} 25. dxc6 {[%clk 0:00:04]}  Rdxc6 {[%clk 0:00:46]} 26. Qe5 {[%clk 0:00:01]}  Ng4 {[%clk 0:00:38]} 27. Nxg4 {[%clk 0:00:01]}  Rxc4 {[%clk 0:00:37]} 28. Rxc4 {[%clk 0:00:01]}  Rxc4 {[%clk 0:00:38]} 0-1


[Site "https://www.chess.com"]

[Event "Titled Tuesday Blitz April 25 Early 2023"]
[White "Luong Phuong Hanh"]
[Black "Devaev, Alexander"]
[WhiteFideId "12401013"]
[BlackFideId "4169395"]
[WhiteElo "2081"]
[BlackElo "2204"]
[Result "0-1"]
[Round "06"]
[TimeControl "180+2"]
[Date "2023.04.25"]
[WhiteClock "0:00:01"]
[BlackClock "0:01:09"]

1. d4 {[%clk 0:03:00]}  Nf6 {[%clk 0:02:59]} 2. Nf3 {[%clk 0:03:01]}  e6 {[%clk 0:02:59]} 3. e3 {[%clk 0:03:01]}  c5 {[%clk 0:03:00]} 4. Bd3 {[%clk 0:03:01]}  b6 {[%clk 0:03:00]} 5. O-O {[%clk 0:03:02]}  Bb7 {[%clk 0:03:01]} 6. c4 {[%clk 0:03:02]}  cxd4 {[%clk 0:03:00]} 7. exd4 {[%clk 0:03:02]}  d5 {[%clk 0:03:01]} 8. Nc3 {[%clk 0:03:02]}  dxc4 {[%clk 0:03:01]} 9. Bxc4 {[%clk 0:03:02]}  Be7 {[%clk 0:02:51]} 10. Ne5 {[%clk 0:02:15]}  O-O {[%clk 0:02:50]} 11. Be3 {[%clk 0:02:00]}  Nc6 {[%clk 0:02:48]} 12. Rc1 {[%clk 0:01:53]}  Rc8 {[%clk 0:02:48]} 13. Bd3 {[%clk 0:01:52]}  Bd6 {[%clk 0:02:38]} 14. f4 {[%clk 0:01:28]}  Bb4 {[%clk 0:02:37]} 15. Bb1 {[%clk 0:01:12]}  Ne7 {[%clk 0:02:32]} 16. Bf2 {[%clk 0:00:43]}  Ng6 {[%clk 0:02:17]} 17. Nxg6 {[%clk 0:00:22]}  hxg6 {[%clk 0:02:17]} 18. Bh4 {[%clk 0:00:16]}  Bxc3 {[%clk 0:02:17]} 19. bxc3 {[%clk 0:00:14]}  Qd5 {[%clk 0:02:16]} 20. Qe2 {[%clk 0:00:11]}  Bc6 {[%clk 0:01:59]} 21. Bd3 {[%clk 0:00:10]}  b5 {[%clk 0:01:59]} 22. Rf2 {[%clk 0:00:08]}  a6 {[%clk 0:01:58]} 23. Bxf6 {[%clk 0:00:06]}  gxf6 {[%clk 0:01:58]} 24. Qg4 {[%clk 0:00:06]}  f5 {[%clk 0:01:58]} 25. Qh4 {[%clk 0:00:04]}  Kg7 {[%clk 0:01:57]} 26. Qg3 {[%clk 0:00:04]}  Rh8 {[%clk 0:01:57]} 27. Qe3 {[%clk 0:00:04]}  f6 {[%clk 0:01:37]} 28. Re1 {[%clk 0:00:03]}  Bd7 {[%clk 0:01:38]} 29. Be2 {[%clk 0:00:03]}  Rc7 {[%clk 0:01:26]} 30. Bf3 {[%clk 0:00:03]}  Qd6 {[%clk 0:01:27]} 31. d5 {[%clk 0:00:03]}  exd5 {[%clk 0:01:24]} 32. Qd4 {[%clk 0:00:03]}  Be6 {[%clk 0:01:18]} 33. Rfe2 {[%clk 0:00:03]}  Bf7 {[%clk 0:01:18]} 34. Rd1 {[%clk 0:00:02]}  Rc4 {[%clk 0:01:17]} 35. Qd3 {[%clk 0:00:01]}  Rd8 {[%clk 0:01:09]} 0-1


[Site "https://www.chess.com"]

[Event "Titled Tuesday Blitz April 25 Early 2023"]
[White "Escanor89"]
[Black "Fernandez Garcia, Gumersindo"]
[BlackFideId "24516740"]
[WhiteElo "2501"]
[BlackElo "2093"]
[Result "1-0"]
[Round "06"]
[TimeControl "180+2"]
[Date "2023.04.25"]
[WhiteClock "0:00:55"]
[BlackClock "0:00:16"]

1. e4 {[%clk 0:03:00]}  Nf6 {[%clk 0:02:53]} 2. e5 {[%clk 0:02:59]}  Nd5 {[%clk 0:02:53]} 3. d4 {[%clk 0:02:59]}  d6 {[%clk 0:02:53]} 4. Nf3 {[%clk 0:02:59]}  Nb6 {[%clk 0:02:53]} 5. exd6 {[%clk 0:02:55]}  cxd6 {[%clk 0:02:53]} 6. Be2 {[%clk 0:02:50]}  g6 {[%clk 0:02:53]} 7. O-O {[%clk 0:02:49]}  Bg7 {[%clk 0:02:53]} 8. h3 {[%clk 0:02:46]}  O-O {[%clk 0:02:53]} 9. c4 {[%clk 0:02:46]}  Nc6 {[%clk 0:02:53]} 10. Nc3 {[%clk 0:02:46]}  Bf5 {[%clk 0:02:51]} 11. Be3 {[%clk 0:02:45]}  d5 {[%clk 0:02:51]} 12. cxd5 {[%clk 0:02:31]}  Nxd5 {[%clk 0:02:50]} 13. Qd2 {[%clk 0:02:30]}  Qd7 {[%clk 0:02:23]} 14. Bh6 {[%clk 0:02:27]}  Rfd8 {[%clk 0:02:18]} 15. Bxg7 {[%clk 0:02:27]}  Kxg7 {[%clk 0:02:19]} 16. Rfd1 {[%clk 0:02:18]}  h6 {[%clk 0:02:18]} 17. Rac1 {[%clk 0:02:16]}  Rac8 {[%clk 0:02:17]} 18. Na4 {[%clk 0:02:10]}  b6 {[%clk 0:02:02]} 19. Ba6 {[%clk 0:02:00]}  Rc7 {[%clk 0:02:01]} 20. Bb5 {[%clk 0:01:59]}  Qd6 {[%clk 0:02:01]} 21. a3 {[%clk 0:01:50]}  Be4 {[%clk 0:01:46]} 22. Ne5 {[%clk 0:01:17]}  Nxe5 {[%clk 0:01:40]} 23. dxe5 {[%clk 0:01:18]}  Qxe5 {[%clk 0:01:38]} 24. Rxc7 {[%clk 0:01:16]}  Qxc7 {[%clk 0:01:37]} 25. Qd4+ {[%clk 0:01:14]}  e5 {[%clk 0:00:53]} 26. Qxe4 {[%clk 0:01:12]}  Nf6 {[%clk 0:00:46]} 27. Qe1 {[%clk 0:01:11]}  e4 {[%clk 0:00:42]} 28. Rxd8 {[%clk 0:01:10]}  Qxd8 {[%clk 0:00:43]} 29. Nc3 {[%clk 0:01:08]}  Qd4 {[%clk 0:00:30]} 30. Qe3 {[%clk 0:01:07]}  Qe5 {[%clk 0:00:27]} 31. Bc6 {[%clk 0:01:05]}  g5 {[%clk 0:00:20]} 32. Bxe4 {[%clk 0:01:03]}  Qd6 {[%clk 0:00:20]} 33. Bf3 {[%clk 0:00:59]}  a5 {[%clk 0:00:17]} 34. Ne4 {[%clk 0:00:57]}  Qe5 {[%clk 0:00:17]} 35. Nxf6 {[%clk 0:00:57]}  Qxf6 {[%clk 0:00:17]} 36. Qxb6 {[%clk 0:00:56]}  a4 {[%clk 0:00:16]} 37. Qb4 {[%clk 0:00:55]} 1-0


[Site "https://www.chess.com"]